[Event "Live Chess"]
[Site "Chess.com"]
[Date "2011.01.22"]
[Round "-"]
[White "hipposcottimus"]
[Black "real08"]
[Result "1-0"]
[CurrentPosition "8/1p3r2/pq4kB/7p/3bB3/1P2Q2P/P7/5RK1 b - -"]
[Timezone "UTC"]
[ECO "B20"]
[ECOUrl "https://www.chess.com/openings/Sicilian-Defense"]
[UTCDate "2011.01.22"]
[UTCTime "20:54:36"]
[WhiteElo "1427"]
[BlackElo "1491"]
[TimeControl "300+5"]
[Termination "hipposcottimus won on time"]
[StartTime "20:54:36"]
[EndDate "2011.01.22"]
[EndTime "21:08:56"]
[Link "https://www.chess.com/game/live/90306319"]

1. e4 {[%clk 0:05:00]} 1... c5 {[%clk 0:05:00]} 2. Bb5 {[%clk 0:05:00.1]} 2... a6 {[%clk 0:04:55.2]} 3. Be2 {[%clk 0:05:04.4]} 3... d6 {[%clk 0:04:53.3]} 4. c4 {[%clk 0:05:09]} 4... Nc6 {[%clk 0:04:46.8]} 5. Nf3 {[%clk 0:05:07.5]} 5... Nf6 {[%clk 0:04:41.1]} 6. Nc3 {[%clk 0:05:02.6]} 6... g6 {[%clk 0:04:41.3]} 7. Qa4 {[%clk 0:05:04.9]} 7... Bd7 {[%clk 0:04:35.1]} 8. Qd1 {[%clk 0:05:08.8]} 8... Bg7 {[%clk 0:04:36.7]} 9. d4 {[%clk 0:05:10.4]} 9... cxd4 {[%clk 0:04:04]} 10. Nxd4 {[%clk 0:05:11.8]} 10... O-O {[%clk 0:04:07.1]} 11. Nf3 {[%clk 0:05:04]} 11... Qa5 {[%clk 0:03:57]} 12. O-O {[%clk 0:04:46]} 12... Qc7 {[%clk 0:03:46.3]} 13. Nd5 {[%clk 0:04:40.8]} 13... Nxd5 {[%clk 0:03:40.7]} 14. cxd5 {[%clk 0:04:37.9]} 14... Ne5 {[%clk 0:03:30.5]} 15. Nd4 {[%clk 0:04:40]} 15... Qb6 {[%clk 0:03:23.4]} 16. b3 {[%clk 0:04:33.4]} 16... Rac8 {[%clk 0:02:18.9]} 17. Be3 {[%clk 0:04:31.1]} 17... Qd8 {[%clk 0:02:10.2]} 18. f4 {[%clk 0:04:25.7]} 18... Rc3 {[%clk 0:01:33.6]} 19. Nc2 {[%clk 0:04:15.8]} 19... Rxc2 {[%clk 0:01:20.1]} 20. Qxc2 {[%clk 0:03:56.7]} 20... Ng4 {[%clk 0:01:21.6]} 21. Bxg4 {[%clk 0:03:40]} 21... Bxa1 {[%clk 0:01:22.7]} 22. Bxd7 {[%clk 0:03:40.3]} 22... Bg7 {[%clk 0:01:20.8]} 23. Bg4 {[%clk 0:03:32.8]} 23... h5 {[%clk 0:01:21.9]} 24. Bf3 {[%clk 0:03:35.9]} 24... f5 {[%clk 0:01:19.4]} 25. e5 {[%clk 0:03:37.3]} 25... dxe5 {[%clk 0:01:12.1]} 26. fxe5 {[%clk 0:03:32.6]} 26... Bxe5 {[%clk 0:01:13.9]} 27. Bh6 {[%clk 0:03:33.7]} 27... Rf7 {[%clk 0:00:59.9]} 28. Qd2 {[%clk 0:03:01.1]} 28... Kh7 {[%clk 0:00:43.8]} 29. Qg5 {[%clk 0:02:42.7]} 29... Bf6 {[%clk 0:00:34]} 30. Qf4 {[%clk 0:02:31.1]} 30... Qd7 {[%clk 0:00:17.9]} 31. h3 {[%clk 0:02:26.7]} 31... e5 {[%clk 0:00:20.2]} 32. dxe6 {[%clk 0:02:29.4]} 32... Qxe6 {[%clk 0:00:23.6]} 33. g4 {[%clk 0:02:32.7]} 33... Be5 {[%clk 0:00:13.6]} 34. Qg5 {[%clk 0:02:23.2]} 34... Bf6 {[%clk 0:00:17.1]} 35. Qf4 {[%clk 0:02:26.5]} 35... Be5 {[%clk 0:00:20.8]} 36. Qg5 {[%clk 0:02:29.6]} 36... Bf6 {[%clk 0:00:24.6]} 37. gxf5 {[%clk 0:02:25.3]} 37... Qb6+ {[%clk 0:00:22.6]} 38. Qe3 {[%clk 0:02:26.9]} 38... Bd4 {[%clk 0:00:14.2]} 39. fxg6+ {[%clk 0:02:31.1]} 39... Kxg6 {[%clk 0:00:08]} 40. Be4+ {[%clk 0:02:26.8]} 1-0

[Event "Live Chess"]
[Site "Chess.com"]
[Date "2011.01.22"]
[Round "-"]
[White "hipposcottimus"]
[Black "dom1845"]
[Result "0-1"]
[CurrentPosition "r5k1/2p3pp/8/8/Pp4PP/5p2/6q1/7K w - -"]
[Timezone "UTC"]
[ECO "C51"]
[ECOUrl "https://www.chess.com/openings/Giuoco-Piano-Game-Evans-Accepted-Anderssen-Variation"]
[UTCDate "2011.01.22"]
[UTCTime "02:39:49"]
[WhiteElo "1647"]
[BlackElo "1638"]
[TimeControl "60"]
[Termination "dom1845 won by checkmate"]
[StartTime "02:39:49"]
[EndDate "2011.01.22"]
[EndTime "02:41:48"]
[Link "https://www.chess.com/game/live/90043249"]

1. e4 {[%clk 0:01:00]} 1... e5 {[%clk 0:01:00]} 2. Nf3 {[%clk 0:00:59.7]} 2... Nc6 {[%clk 0:00:58.8]} 3. Bc4 {[%clk 0:00:59.4]} 3... Bc5 {[%clk 0:00:56.2]} 4. b4 {[%clk 0:00:57.8]} 4... Bxb4 {[%clk 0:00:55.1]} 5. c3 {[%clk 0:00:57.6]} 5... Be7 {[%clk 0:00:54.6]} 6. O-O {[%clk 0:00:57]} 6... d6 {[%clk 0:00:53.7]} 7. d4 {[%clk 0:00:56.4]} 7... Bg4 {[%clk 0:00:47.7]} 8. Bb5 {[%clk 0:00:54.4]} 8... a6 {[%clk 0:00:39.6]} 9. d5 {[%clk 0:00:52.6]} 9... axb5 {[%clk 0:00:37.4]} 10. dxc6 {[%clk 0:00:50.2]} 10... bxc6 {[%clk 0:00:36.7]} 11. Be3 {[%clk 0:00:47.4]} 11... Nf6 {[%clk 0:00:35.6]} 12. Nbd2 {[%clk 0:00:45.8]} 12... O-O {[%clk 0:00:31.2]} 13. Qb3 {[%clk 0:00:45]} 13... Be6 {[%clk 0:00:29]} 14. Ng5 {[%clk 0:00:44.1]} 14... Bxb3 {[%clk 0:00:27.3]} 15. Nxb3 {[%clk 0:00:43.6]} 15... Ng4 {[%clk 0:00:24.3]} 16. Nf3 {[%clk 0:00:42.3]} 16... Nxe3 {[%clk 0:00:23.3]} 17. fxe3 {[%clk 0:00:42.1]} 17... Bg5 {[%clk 0:00:21.2]} 18. Nbd2 {[%clk 0:00:41.9]} 18... Bxe3+ {[%clk 0:00:19.5]} 19. Kh1 {[%clk 0:00:39.8]} 19... Bc5 {[%clk 0:00:18.4]} 20. c4 {[%clk 0:00:38.8]} 20... f5 {[%clk 0:00:17.6]} 21. cxb5 {[%clk 0:00:37.6]} 21... cxb5 {[%clk 0:00:16.5]} 22. exf5 {[%clk 0:00:36.7]} 22... Rxf5 {[%clk 0:00:15.2]} 23. Rac1 {[%clk 0:00:36.4]} 23... Qf8 {[%clk 0:00:13.9]} 24. Ne4 {[%clk 0:00:36]} 24... b4 {[%clk 0:00:11.5]} 25. Nxc5 {[%clk 0:00:35.1]} 25... dxc5 {[%clk 0:00:10.9]} 26. Rxc5 {[%clk 0:00:34.8]} 26... Qxc5 {[%clk 0:00:09.1]} 27. g3 {[%clk 0:00:27.6]} 27... e4 {[%clk 0:00:07.3]} 28. g4 {[%clk 0:00:19.9]} 28... Rxf3 {[%clk 0:00:06]} 29. Rxf3 {[%clk 0:00:19]} 29... exf3 {[%clk 0:00:05.9]} 30. h4 {[%clk 0:00:16.7]} 30... Qf2 {[%clk 0:00:03.7]} 31. a4 {[%clk 0:00:12.9]} 31... Qg2# {[%clk 0:00:03.6]} 0-1

[Event "Live Chess"]
[Site "Chess.com"]
[Date "2011.01.22"]
[Round "-"]
[White "hipposcottimus"]
[Black "mvsbhat"]
[Result "1-0"]
[CurrentPosition "rnbQ2n1/pp6/1kpB3p/8/8/2P5/PP2BPqP/RN2K2R b KQ -"]
[Timezone "UTC"]
[ECO "C40"]
[ECOUrl "https://www.chess.com/openings/Kings-Pawn-Opening-Kings-Knight-Variation"]
[UTCDate "2011.01.22"]
[UTCTime "01:33:21"]
[WhiteElo "1416"]
[BlackElo "1306"]
[TimeControl "600"]
[Termination "hipposcottimus won by checkmate"]
[StartTime "01:33:21"]
[EndDate "2011.01.22"]
[EndTime "01:39:52"]
[Link "https://www.chess.com/game/live/90028882"]

1. e4 {[%clk 0:10:00]} 1... e5 {[%clk 0:10:00]} 2. Nf3 {[%clk 0:09:58.2]} 2... Be7 {[%clk 0:09:58.3]} 3. d4 {[%clk 0:09:54.3]} 3... exd4 {[%clk 0:09:56]} 4. Nxd4 {[%clk 0:09:52.7]} 4... h6 {[%clk 0:09:51.4]} 5. Nf5 {[%clk 0:09:50.9]} 5... Bf8 {[%clk 0:09:41.4]} 6. Bc4 {[%clk 0:09:44.6]} 6... c6 {[%clk 0:09:26]} 7. Qf3 {[%clk 0:08:21.3]} 7... Qa5+ {[%clk 0:09:21]} 8. Bd2 {[%clk 0:08:15.1]} 8... Qe5 {[%clk 0:09:18.1]} 9. Bc3 {[%clk 0:07:36.1]} 9... Qc5 {[%clk 0:08:41.6]} 10. Nxg7+ {[%clk 0:07:23.2]} 10... Bxg7 {[%clk 0:08:39.8]} 11. Qxf7+ {[%clk 0:07:22.1]} 11... Kd8 {[%clk 0:08:32]} 12. Bxg7 {[%clk 0:07:19.2]} 12... Qb4+ {[%clk 0:08:07.3]} 13. c3 {[%clk 0:07:04]} 13... Qe7 {[%clk 0:08:04.8]} 14. Bxh8 {[%clk 0:06:50.7]} 14... Qxe4+ {[%clk 0:07:58]} 15. Be2 {[%clk 0:06:45.7]} 15... Qxg2 {[%clk 0:07:53.9]} 16. Qf8+ {[%clk 0:06:33.5]} 16... Kc7 {[%clk 0:07:51.3]} 17. Be5+ {[%clk 0:06:18.9]} 17... d6 {[%clk 0:07:48.3]} 18. Bxd6+ {[%clk 0:06:05.3]} 18... Kb6 {[%clk 0:07:45.8]} 19. Qd8# {[%clk 0:05:53.3]} 1-0

[Event "Live Chess"]
[Site "Chess.com"]
[Date "2011.01.22"]
[Round "-"]
[White "mrYscott"]
[Black "hipposcottimus"]
[Result "0-1"]
[CurrentPosition "5rk1/5ppp/2p1p3/p7/P7/2R2PP1/qr2QKBP/7R w - -"]
[Timezone "UTC"]
[ECO "D31"]
[ECOUrl "https://www.chess.com/openings/Queens-Gambit-Declined-Semi-Slav-Defense-Accelerated-Move-Order"]
[UTCDate "2011.01.22"]
[UTCTime "01:19:47"]
[WhiteElo "1443"]
[BlackElo "1410"]
[TimeControl "600"]
[Termination "hipposcottimus won by resignation"]
[StartTime "01:19:47"]
[EndDate "2011.01.22"]
[EndTime "01:30:54"]
[Link "https://www.chess.com/game/live/90025519"]

1. d4 {[%clk 0:10:00]} 1... d5 {[%clk 0:10:00]} 2. c4 {[%clk 0:09:55.4]} 2... c6 {[%clk 0:09:58.1]} 3. Nc3 {[%clk 0:09:51]} 3... e6 {[%clk 0:09:54.5]} 4. a3 {[%clk 0:09:46.3]} 4... Ne7 {[%clk 0:09:49.5]} 5. e3 {[%clk 0:09:44]} 5... Ng6 {[%clk 0:09:46.7]} 6. c5 {[%clk 0:09:38.8]} 6... b6 {[%clk 0:09:43.1]} 7. b4 {[%clk 0:09:36.4]} 7... Nd7 {[%clk 0:09:39.8]} 8. a4 {[%clk 0:09:03.2]} 8... bxc5 {[%clk 0:09:36.8]} 9. bxc5 {[%clk 0:09:00.9]} 9... a5 {[%clk 0:09:34]} 10. g3 {[%clk 0:08:45]} 10... Nxc5 {[%clk 0:09:24.8]} 11. dxc5 {[%clk 0:08:39.8]} 11... Bxc5 {[%clk 0:09:24.4]} 12. Bg2 {[%clk 0:08:28.4]} 12... Bb4 {[%clk 0:09:15.3]} 13. Bd2 {[%clk 0:08:26]} 13... Ne5 {[%clk 0:09:00.7]} 14. Qc2 {[%clk 0:08:04.3]} 14... Ba6 {[%clk 0:08:57.4]} 15. Nge2 {[%clk 0:07:52.5]} 15... Nd3+ {[%clk 0:08:55.5]} 16. Kf1 {[%clk 0:07:40.5]} 16... Qf6 {[%clk 0:08:42.4]} 17. f3 {[%clk 0:06:20.6]} 17... Ne5 {[%clk 0:08:20.2]} 18. Kf2 {[%clk 0:06:11.4]} 18... Ng4+ {[%clk 0:08:02.4]} 19. Ke1 {[%clk 0:05:47.3]} 19... Nxe3 {[%clk 0:07:47.1]} 20. Bxe3 {[%clk 0:05:39.4]} 20... Bxe2 {[%clk 0:07:41.3]} 21. Kxe2 {[%clk 0:05:35.4]} 21... Bxc3 {[%clk 0:07:38.8]} 22. Rab1 {[%clk 0:05:20.3]} 22... d4 {[%clk 0:07:34]} 23. Bd2 {[%clk 0:04:44.2]} 23... Qe5+ {[%clk 0:07:29.8]} 24. Kf2 {[%clk 0:04:33.3]} 24... Qc5 {[%clk 0:07:11.8]} 25. Qd3 {[%clk 0:04:23.4]} 25... O-O {[%clk 0:06:31.8]} 26. Bxc3 {[%clk 0:04:16.7]} 26... dxc3+ {[%clk 0:06:25]} 27. Qe3 {[%clk 0:04:04.7]} 27... Qc4 {[%clk 0:06:15.8]} 28. Rbc1 {[%clk 0:03:49.7]} 28... Rab8 {[%clk 0:06:09]} 29. Rxc3 {[%clk 0:03:43.2]} 29... Rb2+ {[%clk 0:06:04.4]} 30. Kg1 {[%clk 0:03:33.8]} 30... Rb1+ {[%clk 0:05:52.7]} 31. Kf2 {[%clk 0:03:26.8]} 31... Qa2+ {[%clk 0:05:50.6]} 32. Qe2 {[%clk 0:03:20.5]} 32... Rb2 {[%clk 0:05:49.2]} 0-1

[Event "Live Chess"]
[Site "Chess.com"]
[Date "2011.01.22"]
[Round "-"]
[White "jerkasmo"]
[Black "hipposcottimus"]
[Result "1-0"]
[CurrentPosition "r1b2rk1/pp4pp/1n2p3/4NpB1/q1PP4/3BP3/P1Qn1PPP/R4RK1 w - -"]
[Timezone "UTC"]
[ECO "D10"]
[ECOUrl "https://www.chess.com/openings/Slav-Defense-3.Nc3"]
[UTCDate "2011.01.22"]
[UTCTime "01:08:20"]
[WhiteElo "1573"]
[BlackElo "1401"]
[TimeControl "480"]
[Termination "jerkasmo won by resignation"]
[StartTime "01:08:20"]
[EndDate "2011.01.22"]
[EndTime "01:17:32"]
[Link "https://www.chess.com/game/live/90023335"]

1. d4 {[%clk 0:08:00]} 1... d5 {[%clk 0:08:00]} 2. c4 {[%clk 0:07:59.6]} 2... c6 {[%clk 0:07:59.7]} 3. Nc3 {[%clk 0:07:58.8]} 3... Nd7 {[%clk 0:07:59]} 4. cxd5 {[%clk 0:07:56.8]} 4... cxd5 {[%clk 0:07:58.1]} 5. Nxd5 {[%clk 0:07:55.3]} 5... e6 {[%clk 0:07:57.9]} 6. Nc3 {[%clk 0:07:51.2]} 6... f5 {[%clk 0:07:57]} 7. Nf3 {[%clk 0:07:38.9]} 7... Bb4 {[%clk 0:07:56]} 8. Qb3 {[%clk 0:07:08.7]} 8... Bxc3+ {[%clk 0:07:51.9]} 9. bxc3 {[%clk 0:07:08.4]} 9... Nb6 {[%clk 0:07:37.7]} 10. Bg5 {[%clk 0:06:31.5]} 10... Nf6 {[%clk 0:07:26.5]} 11. e3 {[%clk 0:06:02.5]} 11... O-O {[%clk 0:07:21.5]} 12. Bd3 {[%clk 0:05:21.7]} 12... Qd5 {[%clk 0:06:57.9]} 13. O-O {[%clk 0:05:02.3]} 13... Ne4 {[%clk 0:06:42.5]} 14. c4 {[%clk 0:04:17.7]} 14... Qc6 {[%clk 0:05:16.8]} 15. Ne5 {[%clk 0:03:32]} 15... Nd2 {[%clk 0:04:45.4]} 16. Qc2 {[%clk 0:03:04.6]} 16... Qa4 {[%clk 0:03:51.8]} 1-0

[Event "Live Chess"]
[Site "Chess.com"]
[Date "2011.01.22"]
[Round "-"]
[White "hipposcottimus"]
[Black "jagwar"]
[Result "1-0"]
[CurrentPosition "r3kb1r/p1pnppp1/1p1q1n2/7p/N2P2bN/2P5/PP1BBPPP/R2Q1RK1 b kq -"]
[Timezone "UTC"]
[ECO "B01"]
[ECOUrl "https://www.chess.com/openings/Scandinavian-Defense-Mieses-Kotrc-Variation-3.d4"]
[UTCDate "2011.01.22"]
[UTCTime "00:57:16"]
[WhiteElo "1406"]
[BlackElo "1250"]
[TimeControl "420"]
[Termination "hipposcottimus won on time"]
[StartTime "00:57:16"]
[EndDate "2011.01.22"]
[EndTime "01:03:55"]
[Link "https://www.chess.com/game/live/90019986"]

1. e4 {[%clk 0:07:00]} 1... d5 {[%clk 0:07:00]} 2. exd5 {[%clk 0:06:57.1]} 2... Qxd5 {[%clk 0:06:46]} 3. d4 {[%clk 0:06:53.1]} 3... Bf5 {[%clk 0:06:36.2]} 4. Nc3 {[%clk 0:06:45.7]} 4... Qa5 {[%clk 0:06:23.8]} 5. Nf3 {[%clk 0:06:22.5]} 5... Nd7 {[%clk 0:05:52.5]} 6. Bd3 {[%clk 0:05:45]} 6... Bg4 {[%clk 0:05:31.8]} 7. O-O {[%clk 0:05:41.1]} 7... Ngf6 {[%clk 0:05:22]} 8. Bd2 {[%clk 0:05:34]} 8... Qb6 {[%clk 0:05:02.7]} 9. Na4 {[%clk 0:05:22.4]} 9... Qd6 {[%clk 0:04:51.7]} 10. c3 {[%clk 0:04:54.9]} 10... b6 {[%clk 0:04:39.1]} 11. Be2 {[%clk 0:04:36.3]} 11... h5 {[%clk 0:03:02]} 12. Nh4 {[%clk 0:04:25.3]} 1-0

[Event "Live Chess"]
[Site "Chess.com"]
[Date "2011.01.22"]
[Round "-"]
[White "jagwar"]
[Black "hipposcottimus"]
[Result "0-1"]
[CurrentPosition "1r2k1nr/p4ppp/B1p1b3/3p4/4p3/q3P1P1/2Q2PKP/b2R4 b k -"]
[Timezone "UTC"]
[ECO "D10"]
[ECOUrl "https://www.chess.com/openings/Slav-Defense-3.Nc3"]
[UTCDate "2011.01.22"]
[UTCTime "00:44:17"]
[WhiteElo "1255"]
[BlackElo "1401"]
[TimeControl "420"]
[Termination "hipposcottimus won by resignation"]
[StartTime "00:44:17"]
[EndDate "2011.01.22"]
[EndTime "00:53:12"]
[Link "https://www.chess.com/game/live/90017685"]

1. d4 {[%clk 0:07:00]} 1... d5 {[%clk 0:07:00]} 2. c4 {[%clk 0:06:58.6]} 2... c6 {[%clk 0:06:59.7]} 3. Nc3 {[%clk 0:06:58.5]} 3... Nd7 {[%clk 0:06:59.4]} 4. Nf3 {[%clk 0:06:54.4]} 4... e6 {[%clk 0:06:58.9]} 5. c5 {[%clk 0:06:50.4]} 5... b6 {[%clk 0:06:56.3]} 6. b4 {[%clk 0:06:46.6]} 6... bxc5 {[%clk 0:06:54.9]} 7. bxc5 {[%clk 0:06:40.8]} 7... e5 {[%clk 0:06:49.7]} 8. e3 {[%clk 0:06:39.1]} 8... e4 {[%clk 0:06:46.5]} 9. Ne5 {[%clk 0:06:21.3]} 9... Nxe5 {[%clk 0:06:44.7]} 10. dxe5 {[%clk 0:06:18.3]} 10... Bxc5 {[%clk 0:06:44.4]} 11. Qh5 {[%clk 0:05:58.3]} 11... Bb4 {[%clk 0:06:32.8]} 12. Bb2 {[%clk 0:05:48.2]} 12... Be6 {[%clk 0:06:18.3]} 13. a3 {[%clk 0:05:41.5]} 13... Ba5 {[%clk 0:06:04.1]} 14. Ba6 {[%clk 0:05:24.2]} 14... Rb8 {[%clk 0:06:01.7]} 15. Qe2 {[%clk 0:03:53.5]} 15... Qb6 {[%clk 0:05:22]} 16. Rb1 {[%clk 0:03:42.4]} 16... Bxc3+ {[%clk 0:05:15.7]} 17. Kf1 {[%clk 0:03:11.6]} 17... Bxb2 {[%clk 0:05:01.1]} 18. g3 {[%clk 0:03:07.2]} 18... Qb3 {[%clk 0:04:49]} 19. Kg2 {[%clk 0:03:05]} 19... Qxa3 {[%clk 0:04:36]} 20. Rhd1 {[%clk 0:02:28.3]} 20... Bxe5 {[%clk 0:04:29.8]} 21. Ra1 {[%clk 0:01:41.8]} 21... Bxa1 {[%clk 0:04:03]} 22. Qc2 {[%clk 0:01:12.9]} 0-1

[Event "Live Chess"]
[Site "Chess.com"]
[Date "2011.01.22"]
[Round "-"]
[White "hipposcottimus"]
[Black "jagwar"]
[Result "0-1"]
[CurrentPosition "8/8/8/7p/1RK2r2/p1P5/k6P/8 w - -"]
[Timezone "UTC"]
[ECO "B01"]
[ECOUrl "https://www.chess.com/openings/Scandinavian-Defense-Mieses-Kotrc-Main-Line-4.d4"]
[UTCDate "2011.01.22"]
[UTCTime "00:30:36"]
[WhiteElo "1396"]
[BlackElo "1260"]
[TimeControl "420"]
[Termination "jagwar won on time"]
[StartTime "00:30:36"]
[EndDate "2011.01.22"]
[EndTime "00:43:41"]
[Link "https://www.chess.com/game/live/90014340"]

1. e4 {[%clk 0:07:00]} 1... d5 {[%clk 0:07:00]} 2. exd5 {[%clk 0:06:45]} 2... Qxd5 {[%clk 0:06:56.8]} 3. Nc3 {[%clk 0:06:44.7]} 3... Qa5 {[%clk 0:06:55.3]} 4. d4 {[%clk 0:06:41.2]} 4... c5 {[%clk 0:06:54.4]} 5. Bd2 {[%clk 0:06:31.2]} 5... Qc7 {[%clk 0:06:44.1]} 6. Nf3 {[%clk 0:06:19.3]} 6... cxd4 {[%clk 0:06:38.3]} 7. Nxd4 {[%clk 0:05:47.8]} 7... h6 {[%clk 0:06:09.7]} 8. Bb5+ {[%clk 0:05:42]} 8... Nc6 {[%clk 0:05:22]} 9. O-O {[%clk 0:05:14.9]} 9... Nf6 {[%clk 0:05:14.1]} 10. Qf3 {[%clk 0:04:07.9]} 10... Bd7 {[%clk 0:04:49.5]} 11. Nd5 {[%clk 0:03:56.4]} 11... Nxd5 {[%clk 0:04:33.7]} 12. Qxd5 {[%clk 0:03:44.5]} 12... e6 {[%clk 0:04:26.2]} 13. Rae1 {[%clk 0:03:31.3]} 13... O-O-O {[%clk 0:04:23]} 14. Ne2 {[%clk 0:02:54.8]} 14... exd5 {[%clk 0:04:18.4]} 15. Bf4 {[%clk 0:02:49.7]} 15... Bd6 {[%clk 0:04:10]} 16. Bxc6 {[%clk 0:02:46.2]} 16... Bxc6 {[%clk 0:04:07.2]} 17. Bxd6 {[%clk 0:02:39.9]} 17... Qxd6 {[%clk 0:04:03.8]} 18. Nd4 {[%clk 0:02:39.6]} 18... Qg6 {[%clk 0:03:54.7]} 19. Nxc6 {[%clk 0:02:32.6]} 19... Qxc6 {[%clk 0:03:46.2]} 20. Re3 {[%clk 0:02:25.7]} 20... f5 {[%clk 0:03:36.8]} 21. Rc3 {[%clk 0:02:24.4]} 21... Qxc3 {[%clk 0:03:32]} 22. bxc3 {[%clk 0:02:24.1]} 22... Rd6 {[%clk 0:03:25.3]} 23. Re1 {[%clk 0:02:16.7]} 23... f4 {[%clk 0:03:17.4]} 24. Rd1 {[%clk 0:02:06.3]} 24... g5 {[%clk 0:03:10.8]} 25. c4 {[%clk 0:02:04.8]} 25... Rhd8 {[%clk 0:03:07.3]} 26. c5 {[%clk 0:01:51.2]} 26... d4 {[%clk 0:03:05.2]} 27. cxd6 {[%clk 0:01:48.2]} 27... Rxd6 {[%clk 0:03:03.3]} 28. f3 {[%clk 0:01:38.3]} 28... a5 {[%clk 0:02:59.6]} 29. Kf2 {[%clk 0:01:37.7]} 29... Kd7 {[%clk 0:02:58]} 30. g3 {[%clk 0:01:36.7]} 30... Kc6 {[%clk 0:02:50.4]} 31. Ke2 {[%clk 0:01:23.4]} 31... Kc5 {[%clk 0:02:43.8]} 32. Rb1 {[%clk 0:01:15.6]} 32... Kc4 {[%clk 0:02:41.6]} 33. Rb3 {[%clk 0:01:13.2]} 33... b5 {[%clk 0:02:35.9]} 34. Rd3 {[%clk 0:00:57.3]} 34... b4 {[%clk 0:02:28.7]} 35. a3 {[%clk 0:00:52.7]} 35... h5 {[%clk 0:02:21.2]} 36. Kd2 {[%clk 0:00:43.1]} 36... bxa3 {[%clk 0:02:12.4]} 37. Rxa3 {[%clk 0:00:39]} 37... Ra6 {[%clk 0:02:08.6]} 38. gxf4 {[%clk 0:00:15.7]} 38... gxf4 {[%clk 0:01:56.3]} 39. c3 {[%clk 0:00:10.5]} 39... d3 {[%clk 0:01:52]} 40. Ra4+ {[%clk 0:00:08.9]} 40... Kb3 {[%clk 0:01:40.9]} 41. Rxf4 {[%clk 0:00:08.6]} 41... a4 {[%clk 0:01:38.5]} 42. Rb4+ {[%clk 0:00:06.4]} 42... Ka3 {[%clk 0:01:32.4]} 43. f4 {[%clk 0:00:06.1]} 43... Ka2 {[%clk 0:01:29.5]} 44. f5 {[%clk 0:00:04.9]} 44... a3 {[%clk 0:01:26.6]} 45. f6 {[%clk 0:00:04]} 45... Rxf6 {[%clk 0:01:24.4]} 46. Kxd3 {[%clk 0:00:02.3]} 46... Rf3+ {[%clk 0:01:22.5]} 47. Kc4 {[%clk 0:00:01.4]} 47... Rf4+ {[%clk 0:01:17.7]} 0-1

[Event "Live Chess"]
[Site "Chess.com"]
[Date "2011.01.22"]
[Round "-"]
[White "jagwar"]
[Black "hipposcottimus"]
[Result "0-1"]
[CurrentPosition "6k1/p2n2pp/B1pPN3/4p3/3pP3/P6P/5r2/r1K1R2R w - -"]
[Timezone "UTC"]
[ECO "D10"]
[ECOUrl "https://www.chess.com/openings/Slav-Defense-3.Nc3"]
[UTCDate "2011.01.22"]
[UTCTime "00:16:17"]
[WhiteElo "1248"]
[BlackElo "1406"]
[TimeControl "420"]
[Termination "hipposcottimus won by checkmate"]
[StartTime "00:16:17"]
[EndDate "2011.01.22"]
[EndTime "00:29:10"]
[Link "https://www.chess.com/game/live/90011037"]

1. d4 {[%clk 0:07:00]} 1... d5 {[%clk 0:07:00]} 2. c4 {[%clk 0:06:57.7]} 2... c6 {[%clk 0:06:59.2]} 3. Nc3 {[%clk 0:06:57.6]} 3... Nd7 {[%clk 0:06:57.2]} 4. h3 {[%clk 0:06:51.5]} 4... e6 {[%clk 0:06:54.6]} 5. Bf4 {[%clk 0:06:37.3]} 5... f6 {[%clk 0:06:24.1]} 6. Nf3 {[%clk 0:05:25.4]} 6... Bb4 {[%clk 0:06:22.1]} 7. Qb3 {[%clk 0:05:17.7]} 7... Bxc3+ {[%clk 0:06:12.6]} 8. Qxc3 {[%clk 0:05:12.2]} 8... Ne7 {[%clk 0:06:12.3]} 9. c5 {[%clk 0:05:08.6]} 9... Ng6 {[%clk 0:06:09.1]} 10. Bd6 {[%clk 0:05:04.1]} 10... b6 {[%clk 0:05:58.3]} 11. g4 {[%clk 0:04:42]} 11... bxc5 {[%clk 0:05:55.1]} 12. dxc5 {[%clk 0:04:33.4]} 12... e5 {[%clk 0:05:53.1]} 13. O-O-O {[%clk 0:03:53.1]} 13... Ne7 {[%clk 0:05:15.3]} 14. e3 {[%clk 0:03:49.4]} 14... O-O {[%clk 0:05:12.8]} 15. g5 {[%clk 0:03:42.1]} 15... fxg5 {[%clk 0:05:10.3]} 16. Nxg5 {[%clk 0:03:39.8]} 16... Rxf2 {[%clk 0:04:52.6]} 17. e4 {[%clk 0:03:23.4]} 17... Nf5 {[%clk 0:04:34.3]} 18. Ne6 {[%clk 0:02:48.9]} 18... d4 {[%clk 0:03:18.3]} 19. Qb3 {[%clk 0:02:18.2]} 19... Rb8 {[%clk 0:02:14.5]} 20. Qd3 {[%clk 0:02:00.2]} 20... Qa5 {[%clk 0:01:51.7]} 21. Qa3 {[%clk 0:01:25.5]} 21... Qxa3 {[%clk 0:01:10.5]} 22. bxa3 {[%clk 0:01:22.4]} 22... Nxd6 {[%clk 0:00:59.8]} 23. cxd6 {[%clk 0:01:15.7]} 23... Rbb2 {[%clk 0:00:56.7]} 24. Re1 {[%clk 0:00:56.2]} 24... Rxa2 {[%clk 0:00:49.3]} 25. Bd3 {[%clk 0:00:50.8]} 25... Ba6 {[%clk 0:00:34]} 26. Bxa6 {[%clk 0:00:47.9]} 26... Ra1# {[%clk 0:00:32.9]} 0-1